[Event "*** Biggest EVER Titled Tuesday"]
[Site "Chess.com"]
[Date "2018.04.17"]
[Round "6"]
[White "Journey_to_GrandMaster_YT"]
[Black "MateusViageiro"]
[Result "1-0"]
[WhiteElo "2378"]
[BlackElo "2216"]
[TimeControl "180+2"]
[EndTime "14:21:16 PDT"]
[Termination "Journey_to_GrandMaster_YT won by checkmate"]

1. d4 {[%clk 0:03:01]} 1... Nf6 {[%clk 0:02:59.3]} 2. Nf3 {[%clk 0:03:02]} 2...
e6 {[%clk 0:03:00.5]} 3. c4 {[%clk 0:03:02.9]} 3... b6 {[%clk 0:03:00.5]} 4. g3
{[%clk 0:03:02.9]} 4... Bb7 {[%clk 0:03:01.1]} 5. Bg2 {[%clk 0:03:04.8]} 5...
Bb4+ {[%clk 0:03:01.7]} 6. Nbd2 {[%clk 0:03:04.6]} 6... O-O {[%clk 0:03:01.7]}
7. O-O {[%clk 0:03:05.3]} 7... Ne4 {[%clk 0:02:59.4]} 8. Ng5 {[%clk 0:02:29.9]}
8... Bxd2 {[%clk 0:01:37.5]} 9. Bxd2 {[%clk 0:01:55.6]} 9... d5 {[%clk
0:01:32.4]} 10. Nxe4 {[%clk 0:01:51.4]} 10... dxe4 {[%clk 0:01:32.8]} 11. Bb4
{[%clk 0:01:48.9]} 11... Re8 {[%clk 0:01:33.3]} 12. e3 {[%clk 0:01:42.2]} 12...
Nd7 {[%clk 0:01:33.5]} 13. Rc1 {[%clk 0:01:38.2]} 13... c5 {[%clk 0:01:32.9]}
14. Bc3 {[%clk 0:01:37.1]} 14... Rc8 {[%clk 0:01:27.4]} 15. Qa4 {[%clk
0:01:26.3]} 15... a6 {[%clk 0:01:18.4]} 16. Rfd1 {[%clk 0:01:24]} 16... Qc7
{[%clk 0:01:19.1]} 17. b4 {[%clk 0:01:10.2]} 17... cxd4 {[%clk 0:00:59.4]} 18.
Bxd4 {[%clk 0:00:54.1]} 18... Ne5 {[%clk 0:00:52.9]} 19. c5 {[%clk 0:00:41.6]}
19... Nd3 {[%clk 0:00:41.5]} 20. cxb6 {[%clk 0:00:34.5]} 20... Qxc1 {[%clk
0:00:40.8]} 21. Rxc1 {[%clk 0:00:35.3]} 21... Rxc1+ {[%clk 0:00:41.1]} 22. Bf1
{[%clk 0:00:36.2]} 22... e5 {[%clk 0:00:41]} 23. Qxe8# {[%clk 0:00:36.4]} 1-0

[Event "*** Biggest EVER Titled Tuesday"]
[Site "Chess.com"]
[Date "2018.04.17"]
[Round "6"]
[White "Bryakin_Mikhail"]
[Black "AndrewDGreen"]
[Result "1-0"]
[WhiteElo "2605"]
[BlackElo "2137"]
[TimeControl "180+2"]
[EndTime "14:21:24 PDT"]
[Termination "Bryakin_Mikhail won on time"]

1. d4 {[%clk 0:02:55.1]} 1... Nf6 {[%clk 0:03:00.5]} 2. c4 {[%clk 0:02:56.1]}
2... g6 {[%clk 0:03:02]} 3. Nc3 {[%clk 0:02:57.4]} 3... Bg7 {[%clk 0:03:03.5]}
4. e4 {[%clk 0:02:58.9]} 4... d6 {[%clk 0:03:05.1]} 5. h3 {[%clk 0:03:00.4]}
5... O-O {[%clk 0:03:04.5]} 6. Be3 {[%clk 0:03:01.9]} 6... e5 {[%clk 0:03:04.7]}
7. d5 {[%clk 0:03:03.4]} 7... a5 {[%clk 0:03:03.9]} 8. g4 {[%clk 0:03:04.9]}
8... Na6 {[%clk 0:03:03.9]} 9. Bd3 {[%clk 0:03:04.9]} 9... Nd7 {[%clk
0:03:04.8]} 10. a3 {[%clk 0:03:04.7]} 10... Ndc5 {[%clk 0:03:03.5]} 11. Bc2
{[%clk 0:03:06.1]} 11... Bd7 {[%clk 0:02:49.6]} 12. Nge2 {[%clk 0:03:07.3]}
12... f5 {[%clk 0:02:07.8]} 13. exf5 {[%clk 0:03:06]} 13... gxf5 {[%clk
0:02:09.7]} 14. gxf5 {[%clk 0:03:05.5]} 14... Bxf5 {[%clk 0:02:10.7]} 15. Bxf5
{[%clk 0:03:06.5]} 15... Rxf5 {[%clk 0:02:12.6]} 16. Ng3 {[%clk 0:03:07.5]}
16... Rf7 {[%clk 0:02:09.8]} 17. Qc2 {[%clk 0:03:03.3]} 17... Kh8 {[%clk
0:02:02.6]} 18. Nce4 {[%clk 0:03:03.6]} 18... Nxe4 {[%clk 0:01:23.7]} 19. Nxe4
{[%clk 0:03:03.7]} 19... Bf6 {[%clk 0:01:25.2]} 20. O-O-O {[%clk 0:02:58.1]}
20... b6 {[%clk 0:01:02.2]} 21. Rdg1 {[%clk 0:02:55.6]} 21... Bh4 {[%clk
0:00:57.7]} 22. Rg4 {[%clk 0:02:53.8]} 22... Qe7 {[%clk 0:00:57.5]} 23. Rhg1
{[%clk 0:02:53.9]} 23... Raf8 {[%clk 0:00:55.9]} 24. Qe2 {[%clk 0:02:25.4]}
24... Nc5 {[%clk 0:00:49]} 25. Ng5 {[%clk 0:02:05.8]} 25... Bxg5 {[%clk
0:00:43.2]} 26. Rxg5 {[%clk 0:02:07.7]} 26... Ne4 {[%clk 0:00:31.2]} 27. R5g2
{[%clk 0:02:00.3]} 27... Qf6 {[%clk 0:00:24.8]} 28. Qg4 {[%clk 0:01:54.3]} 28...
Qg6 {[%clk 0:00:16.8]} 29. Qxg6 {[%clk 0:01:33]} 29... hxg6 {[%clk 0:00:18.7]}
30. Rxg6 {[%clk 0:01:34.5]} 30... Rh7 {[%clk 0:00:04.6]} 31. R1g4 {[%clk
0:01:35.4]} 31... Nxf2 {[%clk 0:00:03.8]} 32. Bxf2 {[%clk 0:01:35.3]} 1-0

[Event "*** Biggest EVER Titled Tuesday"]
[Site "Chess.com"]
[Date "2018.04.17"]
[Round "6"]
[White "ZapataCharlesS"]
[Black "sergiochess83"]
[Result "1/2-1/2"]
[WhiteElo "2705"]
[BlackElo "2788"]
[TimeControl "180+2"]
[EndTime "14:21:30 PDT"]
[Termination "Game drawn by agreement"]

1. d4 {[%clk 0:02:58]} 1... Nf6 {[%clk 0:02:57]} 2. Nf3 {[%clk 0:02:51.7]} 2...
g6 {[%clk 0:02:56.8]} 3. g3 {[%clk 0:02:50.7]} 3... Bg7 {[%clk 0:02:57.6]} 4.
Bg2 {[%clk 0:02:52.6]} 4... O-O {[%clk 0:02:58.3]} 5. O-O {[%clk 0:02:52.6]}
5... d5 {[%clk 0:02:57.8]} 6. c4 {[%clk 0:02:49.2]} 6... c6 {[%clk 0:02:58.4]}
7. cxd5 {[%clk 0:02:49.9]} 7... cxd5 {[%clk 0:02:59.1]} 8. Nc3 {[%clk
0:02:51.8]} 8... b6 {[%clk 0:02:43.1]} 9. Ne5 {[%clk 0:02:48.7]} 9... Bb7 {[%clk
0:02:44.3]} 10. Bg5 {[%clk 0:02:49.3]} 10... h6 {[%clk 0:02:43.3]} 11. Bxf6
{[%clk 0:02:47.3]} 11... Bxf6 {[%clk 0:02:43.4]} 12. f4 {[%clk 0:02:47.7]} 12...
e6 {[%clk 0:02:42.5]} 13. e3 {[%clk 0:02:48.2]} 13... Bg7 {[%clk 0:02:40.1]} 14.
Rc1 {[%clk 0:02:46.5]} 14... Nd7 {[%clk 0:02:39.7]} 15. h4 {[%clk 0:02:42.2]}
15... h5 {[%clk 0:02:28.9]} 16. Qa4 {[%clk 0:02:07.6]} 16... Nf6 {[%clk
0:02:12.9]} 17. Rf2 {[%clk 0:02:08.1]} 17... a6 {[%clk 0:02:12.2]} 18. Rfc2
{[%clk 0:02:00.5]} 18... Rc8 {[%clk 0:02:06.6]} 19. Bf3 {[%clk 0:01:54.7]} 19...
Qd6 {[%clk 0:02:02.3]} 20. Qa3 {[%clk 0:01:52.9]} 20... Qxa3 {[%clk 0:01:49.1]}
21. bxa3 {[%clk 0:01:53.7]} 21... b5 {[%clk 0:01:50.6]} 22. a4 {[%clk
0:01:44.2]} 22... b4 {[%clk 0:01:47.8]} 23. Ne2 {[%clk 0:01:40.3]} 23... Rxc2
{[%clk 0:01:45.7]} 24. Rxc2 {[%clk 0:01:42.2]} 24... Rc8 {[%clk 0:01:46.8]} 25.
Rxc8+ {[%clk 0:01:43.7]} 25... Bxc8 {[%clk 0:01:48.6]} 26. Nc1 {[%clk
0:01:45.3]} 26... Bf8 {[%clk 0:01:44]} 27. Nb3 {[%clk 0:01:46.4]} 27... Bd6
{[%clk 0:01:25.8]} 28. Kf2 {[%clk 0:01:42.1]} 28... Kf8 {[%clk 0:01:25.2]} 29.
a5 {[%clk 0:01:39.3]} 29... Ng8 {[%clk 0:01:04.1]} 30. Ke2 {[%clk 0:01:24.2]}
30... Ne7 {[%clk 0:01:04.2]} 31. Kf2 {[%clk 0:01:08.6]} 31... f6 {[%clk
0:00:59.5]} 32. Nd3 {[%clk 0:01:05.4]} 32... Nc6 {[%clk 0:01:00.5]} 33. Ndc5
{[%clk 0:01:01.9]} 33... Ke7 {[%clk 0:00:38.3]} 1/2-1/2

[Event "*** Biggest EVER Titled Tuesday"]
[Site "Chess.com"]
[Date "2018.04.17"]
[Round "6"]
[White "Alex_Molchanov"]
[Black "Korchmar_Vasiliy"]
[Result "0-1"]
[WhiteElo "2545"]
[BlackElo "2675"]
[TimeControl "180+2"]
[EndTime "14:21:31 PDT"]
[Termination "Korchmar_Vasiliy won by resignation"]

1. d4 {[%clk 0:03:01.9]} 1... Nf6 {[%clk 0:03:00.4]} 2. c4 {[%clk 0:03:02.8]}
2... g6 {[%clk 0:03:01.3]} 3. Nc3 {[%clk 0:03:02.2]} 3... d5 {[%clk 0:03:02.5]}
4. Nf3 {[%clk 0:02:55.7]} 4... Bg7 {[%clk 0:03:02.8]} 5. Bg5 {[%clk 0:02:56.2]}
5... dxc4 {[%clk 0:03:01.2]} 6. e3 {[%clk 0:02:51.4]} 6... Be6 {[%clk
0:02:59.1]} 7. Ne5 {[%clk 0:02:38.9]} 7... Nd5 {[%clk 0:02:52.2]} 8. Nxc4 {[%clk
0:02:31.1]} 8... O-O {[%clk 0:02:51.3]} 9. Rc1 {[%clk 0:02:18.9]} 9... c5 {[%clk
0:02:44.9]} 10. Be2 {[%clk 0:01:56.5]} 10... cxd4 {[%clk 0:02:43.2]} 11. exd4
{[%clk 0:01:57.6]} 11... Nc6 {[%clk 0:02:41.9]} 12. Be3 {[%clk 0:01:57.7]} 12...
Nxe3 {[%clk 0:02:38.9]} 13. fxe3 {[%clk 0:01:58.4]} 13... Rc8 {[%clk 0:02:39.5]}
14. b3 {[%clk 0:01:50.2]} 14... b5 {[%clk 0:02:17.7]} 15. Nxb5 {[%clk
0:01:43.6]} 15... Qd5 {[%clk 0:02:19.1]} 16. Nc3 {[%clk 0:01:36]} 16... Qxg2
{[%clk 0:02:19.8]} 17. Bf3 {[%clk 0:01:36.5]} 17... Qh3 {[%clk 0:02:18.4]} 18.
Qe2 {[%clk 0:01:17.9]} 18... Bxd4 {[%clk 0:02:10.1]} 19. Ne4 {[%clk 0:01:12.3]}
19... Bg7 {[%clk 0:02:05.7]} 20. Nf2 {[%clk 0:00:57.6]} 20... Qh4 {[%clk
0:02:03.1]} 21. Bg4 {[%clk 0:00:49.7]} 21... Bd5 {[%clk 0:01:59]} 22. O-O {[%clk
0:00:40.9]} 22... Rcd8 {[%clk 0:01:56]} 23. Bf3 {[%clk 0:00:38.8]} 23... Ne5
{[%clk 0:01:50]} 24. Bxd5 {[%clk 0:00:24.3]} 24... Rxd5 {[%clk 0:01:51.9]} 25.
Nxe5 {[%clk 0:00:16.2]} 25... Bxe5 {[%clk 0:01:53.8]} 26. Ng4 {[%clk 0:00:17.3]}
26... Bd6 {[%clk 0:01:47.6]} 27. Rc4 {[%clk 0:00:17.8]} 27... Rg5 {[%clk
0:01:41.6]} 28. Kh1 {[%clk 0:00:18.7]} 28... Qh5 {[%clk 0:01:30.7]} 29. Rf2
{[%clk 0:00:17.3]} 29... f5 {[%clk 0:01:28.6]} 30. Qf3 {[%clk 0:00:07.5]} 30...
Rxg4 {[%clk 0:01:20.3]} 0-1

[Event "*** Biggest EVER Titled Tuesday"]
[Site "Chess.com"]
[Date "2018.04.17"]
[Round "6"]
[White "DACF2905"]
[Black "PenguinPacks"]
[Result "0-1"]
[WhiteElo "2022"]
[BlackElo "2145"]
[TimeControl "180+2"]
[EndTime "14:21:43 PDT"]
[Termination "PenguinPacks won by resignation"]

1. e4 {[%clk 0:03:00]} 1... Nf6 {[%clk 0:03:01.9]} 2. e5 {[%clk 0:03:00.9]} 2...
Nd5 {[%clk 0:03:01.5]} 3. d4 {[%clk 0:03:01]} 3... d6 {[%clk 0:03:01.9]} 4. exd6
{[%clk 0:03:01.6]} 4... exd6 {[%clk 0:03:01.6]} 5. Nf3 {[%clk 0:03:02.4]} 5...
Be7 {[%clk 0:03:00.9]} 6. c4 {[%clk 0:03:02.6]} 6... Nb6 {[%clk 0:03:00.9]} 7.
Nc3 {[%clk 0:03:00.5]} 7... O-O {[%clk 0:03:00.8]} 8. Bd3 {[%clk 0:02:58.9]}
8... Nc6 {[%clk 0:03:01.7]} 9. O-O {[%clk 0:02:58]} 9... Bg4 {[%clk 0:03:01]}
10. Be3 {[%clk 0:02:58.4]} 10... Bf6 {[%clk 0:03:01.3]} 11. d5 {[%clk
0:02:56.8]} 11... Ne5 {[%clk 0:02:52.3]} 12. Be2 {[%clk 0:02:55.4]} 12... Nexc4
{[%clk 0:02:49.1]} 13. Qc1 {[%clk 0:02:42]} 13... Re8 {[%clk 0:02:35.5]} 14.
Bxb6 {[%clk 0:02:36.9]} 14... Nxb6 {[%clk 0:02:32.8]} 15. Re1 {[%clk 0:02:34]}
15... Bxc3 {[%clk 0:02:17]} 16. Qxc3 {[%clk 0:02:33.4]} 16... Nxd5 {[%clk
0:02:18.3]} 17. Qd4 {[%clk 0:02:29.4]} 17... Nf6 {[%clk 0:02:18.6]} 18. h3
{[%clk 0:02:21.8]} 18... Bh5 {[%clk 0:02:13.3]} 19. g4 {[%clk 0:02:19.6]} 19...
Bg6 {[%clk 0:02:07.5]} 20. Nh4 {[%clk 0:02:19.6]} 20... d5 {[%clk 0:02:00.5]}
21. Nxg6 {[%clk 0:02:12.5]} 21... hxg6 {[%clk 0:02:02.4]} 22. Bf3 {[%clk
0:01:59]} 22... c6 {[%clk 0:01:56.5]} 23. b4 {[%clk 0:01:56.9]} 23... Qb6 {[%clk
0:01:56]} 24. Qc3 {[%clk 0:01:54.3]} 24... Ne4 {[%clk 0:01:43.5]} 25. Bxe4
{[%clk 0:01:54]} 25... Rxe4 {[%clk 0:01:42.9]} 26. Rxe4 {[%clk 0:01:54.4]} 26...
dxe4 {[%clk 0:01:44.8]} 27. Re1 {[%clk 0:01:55]} 27... Re8 {[%clk 0:01:41.3]}
28. a3 {[%clk 0:01:50.6]} 28... Qb5 {[%clk 0:01:36.5]} 29. Re3 {[%clk
0:01:46.8]} 29... Qe5 {[%clk 0:01:35.9]} 30. Qd2 {[%clk 0:01:42]} 30... f5
{[%clk 0:01:34.3]} 31. gxf5 {[%clk 0:01:34.6]} 31... gxf5 {[%clk 0:01:36.2]} 32.
Qd7 {[%clk 0:01:33.4]} 32... f4 {[%clk 0:01:33.6]} 33. Re1 {[%clk 0:01:32.5]}
33... Re7 {[%clk 0:01:22.9]} 34. Qd8+ {[%clk 0:01:24.8]} 34... Kh7 {[%clk
0:01:22.5]} 35. Qd1 {[%clk 0:01:20.9]} 35... f3 {[%clk 0:01:17.3]} 36. Qd2
{[%clk 0:01:20.5]} 36... Re6 {[%clk 0:01:17.6]} 37. Qd8 {[%clk 0:01:16.9]} 37...
Rg6+ {[%clk 0:01:13.2]} 38. Kh1 {[%clk 0:01:17.9]} 38... Rg2 {[%clk 0:01:00.8]}
39. Qh4+ {[%clk 0:01:16.7]} 39... Kg8 {[%clk 0:01:00.1]} 40. Qd8+ {[%clk
0:01:16.6]} 40... Kf7 {[%clk 0:01:01]} 41. Qd7+ {[%clk 0:01:16.8]} 41... Kg6
{[%clk 0:01:02.2]} 0-1

[Event "*** Biggest EVER Titled Tuesday"]
[Site "Chess.com"]
[Date "2018.04.17"]
[Round "6"]
[White "Zhuu96"]
[Black "Zaven_ChessMood"]
[Result "0-1"]
[WhiteElo "2729"]
[BlackElo "2869"]
[TimeControl "180+2"]
[EndTime "14:21:45 PDT"]
[Termination "Zaven_ChessMood won by resignation"]

1. e4 {[%clk 0:02:57.2]} 1... g6 {[%clk 0:03:00.4]} 2. d4 {[%clk 0:02:57.2]}
2... Bg7 {[%clk 0:03:01.9]} 3. Nf3 {[%clk 0:02:58.7]} 3... d6 {[%clk 0:03:03.4]}
4. Bd3 {[%clk 0:03:00]} 4... Nf6 {[%clk 0:03:04.5]} 5. h3 {[%clk 0:02:59.8]}
5... Nc6 {[%clk 0:03:05.2]} 6. d5 {[%clk 0:02:55.7]} 6... Nb4 {[%clk 0:03:02.8]}
7. O-O {[%clk 0:02:48.4]} 7... O-O {[%clk 0:03:02.9]} 8. c4 {[%clk 0:02:46.6]}
8... c6 {[%clk 0:03:00.8]} 9. Nc3 {[%clk 0:02:47.2]} 9... Nxd3 {[%clk
0:02:56.2]} 10. Qxd3 {[%clk 0:02:47.7]} 10... Nd7 {[%clk 0:02:56.5]} 11. Bf4
{[%clk 0:02:43.6]} 11... Nc5 {[%clk 0:02:54.3]} 12. Qe2 {[%clk 0:02:44.6]} 12...
Re8 {[%clk 0:02:47.4]} 13. e5 {[%clk 0:02:44.4]} 13... cxd5 {[%clk 0:02:43]} 14.
cxd5 {[%clk 0:02:44.8]} 14... Bf5 {[%clk 0:02:41.6]} 15. Rfd1 {[%clk 0:02:44.6]}
15... Qb6 {[%clk 0:02:35.1]} 16. Nd4 {[%clk 0:02:41.7]} 16... Bd3 {[%clk
0:02:29.1]} 17. Qe3 {[%clk 0:02:33.5]} 17... Qxb2 {[%clk 0:02:23.5]} 18. Rac1
{[%clk 0:02:34.1]} 18... Rac8 {[%clk 0:02:08.5]} 19. h4 {[%clk 0:02:32.1]} 19...
dxe5 {[%clk 0:02:00.4]} 20. Bxe5 {[%clk 0:02:32.9]} 20... Bxe5 {[%clk
0:02:01.6]} 21. Qxe5 {[%clk 0:02:34.1]} 21... Nd7 {[%clk 0:01:59.2]} 22. Qe3
{[%clk 0:02:34]} 22... Rxc3 {[%clk 0:01:54.6]} 23. Rxc3 {[%clk 0:02:34.1]} 23...
Qxc3 {[%clk 0:01:55.6]} 24. Rxd3 {[%clk 0:02:35.6]} 24... Qc5 {[%clk 0:01:53.6]}
25. h5 {[%clk 0:02:19]} 25... Nf6 {[%clk 0:01:49.9]} 26. hxg6 {[%clk 0:01:53.5]}
26... hxg6 {[%clk 0:01:50.3]} 27. Nf5 {[%clk 0:01:53.9]} 27... Qxe3 {[%clk
0:01:48.4]} 28. Nxe3 {[%clk 0:01:54.9]} 28... Rd8 {[%clk 0:01:49.5]} 29. Ra3
{[%clk 0:01:53.1]} 29... a6 {[%clk 0:01:49.8]} 30. Rb3 {[%clk 0:01:54.1]} 30...
b5 {[%clk 0:01:50.4]} 31. a4 {[%clk 0:01:54.1]} 31... bxa4 {[%clk 0:01:48.9]}
32. Rb6 {[%clk 0:01:45.6]} 32... Nxd5 {[%clk 0:01:49.1]} 33. Nxd5 {[%clk
0:01:39.7]} 33... Rxd5 {[%clk 0:01:48.9]} 34. Rxa6 {[%clk 0:01:41.3]} 34... Rd1+
{[%clk 0:01:49.2]} 35. Kh2 {[%clk 0:01:42.5]} 35... Ra1 {[%clk 0:01:50.8]} 36.
g4 {[%clk 0:01:40.1]} 36... f6 {[%clk 0:01:46.8]} 37. Kg2 {[%clk 0:01:40.5]}
37... a3 {[%clk 0:01:46.3]} 38. g5 {[%clk 0:01:39]} 38... Kf7 {[%clk 0:01:44.3]}
39. gxf6 {[%clk 0:01:39.6]} 39... exf6 {[%clk 0:01:45.3]} 40. f3 {[%clk
0:01:39.1]} 40... a2 {[%clk 0:01:44.9]} 41. Ra7+ {[%clk 0:01:36.2]} 41... Ke8
{[%clk 0:01:45.1]} 42. Ra6 {[%clk 0:01:35]} 42... g5 {[%clk 0:01:44.6]} 43. Ra5
{[%clk 0:01:34.7]} 43... f5 {[%clk 0:01:43.8]} 44. Ra4 {[%clk 0:01:35.6]} 44...
f4 {[%clk 0:01:43]} 45. Ra7 {[%clk 0:01:34.3]} 45... g4 {[%clk 0:01:42.7]} 46.
Ra8+ {[%clk 0:01:24.4]} 46... Kd7 {[%clk 0:01:42.1]} 47. Ra7+ {[%clk 0:01:25.6]}
47... Kc8 {[%clk 0:01:42.2]} 48. fxg4 {[%clk 0:01:24.6]} 48... f3+ {[%clk
0:01:42.6]} 49. Kxf3 {[%clk 0:01:25.1]} 49... Rf1+ {[%clk 0:01:43]} 50. Ke4
{[%clk 0:01:26.3]} 50... a1=Q {[%clk 0:01:43.4]} 51. Rxa1 {[%clk 0:01:27.8]}
51... Rxa1 {[%clk 0:01:44.4]} 52. Kf5 {[%clk 0:01:29.3]} 52... Kd7 {[%clk
0:01:42.7]} 53. Kf6 {[%clk 0:01:29.5]} 53... Rf1+ {[%clk 0:01:41.3]} 54. Kg6
{[%clk 0:01:29.5]} 54... Ke6 {[%clk 0:01:41.3]} 55. g5 {[%clk 0:01:30.2]} 55...
Rg1 {[%clk 0:01:42.7]} 0-1

[Event "*** Biggest EVER Titled Tuesday"]
[Site "Chess.com"]
[Date "2018.04.17"]
[Round "6"]
[White "albi1999"]
[Black "kirillshevchenko"]
[Result "0-1"]
[WhiteElo "2392"]
[BlackElo "2356"]
[TimeControl "180+2"]
[EndTime "14:21:47 PDT"]
[Termination "kirillshevchenko won by resignation"]

1. d4 {[%clk 0:03:01]} 1... Nf6 {[%clk 0:02:59.9]} 2. c4 {[%clk 0:03:02]} 2...
g6 {[%clk 0:02:58.5]} 3. g3 {[%clk 0:03:02.5]} 3... Bg7 {[%clk 0:02:59.1]} 4.
Bg2 {[%clk 0:02:56.6]} 4... O-O {[%clk 0:02:59.7]} 5. Nc3 {[%clk 0:02:58]} 5...
d6 {[%clk 0:03:00.2]} 6. Nf3 {[%clk 0:02:55.2]} 6... Nc6 {[%clk 0:03:00.5]} 7.
O-O {[%clk 0:02:55.3]} 7... e5 {[%clk 0:03:01.2]} 8. dxe5 {[%clk 0:02:54.9]}
8... dxe5 {[%clk 0:03:01.8]} 9. Bg5 {[%clk 0:02:54.2]} 9... Be6 {[%clk
0:03:02.6]} 10. b3 {[%clk 0:02:40.2]} 10... h6 {[%clk 0:02:40.8]} 11. Bxf6
{[%clk 0:02:33.6]} 11... Bxf6 {[%clk 0:02:41.5]} 12. Nd5 {[%clk 0:02:34.5]}
12... Bg7 {[%clk 0:02:15.3]} 13. Rc1 {[%clk 0:02:24.6]} 13... e4 {[%clk
0:02:08.6]} 14. Nd2 {[%clk 0:02:23.8]} 14... f5 {[%clk 0:02:09.8]} 15. f3 {[%clk
0:02:20.9]} 15... e3 {[%clk 0:01:38.1]} 16. Nb1 {[%clk 0:02:11.6]} 16... Ne7
{[%clk 0:01:22]} 17. f4 {[%clk 0:02:02.8]} 17... c6 {[%clk 0:01:09.8]} 18. Nxe3
{[%clk 0:02:00]} 18... Bd4 {[%clk 0:01:01.6]} 19. Qd3 {[%clk 0:01:45.5]} 19...
Qb6 {[%clk 0:00:57.2]} 20. Kf2 {[%clk 0:01:45.2]} 20... Rad8 {[%clk 0:00:54]}
21. Rfd1 {[%clk 0:01:45.3]} 21... Bb2 {[%clk 0:00:44]} 22. Qc2 {[%clk
0:01:44.1]} 22... Bxc1 {[%clk 0:00:45.4]} 23. Qxc1 {[%clk 0:01:44.4]} 23... Rxd1
{[%clk 0:00:45.7]} 24. Qxd1 {[%clk 0:01:46.3]} 24... Rd8 {[%clk 0:00:47.2]} 25.
Qc2 {[%clk 0:01:46.7]} 25... Kg7 {[%clk 0:00:37.2]} 26. c5 {[%clk 0:01:38.8]}
26... Qb4 {[%clk 0:00:33.6]} 27. a3 {[%clk 0:01:17]} 27... Qxb3 {[%clk
0:00:31.9]} 28. Qxb3 {[%clk 0:01:16.1]} 28... Bxb3 {[%clk 0:00:32.4]} 29. Nc3
{[%clk 0:01:17.6]} 29... Kf6 {[%clk 0:00:30.7]} 30. h3 {[%clk 0:01:15.4]} 30...
b6 {[%clk 0:00:25.7]} 31. cxb6 {[%clk 0:01:15.3]} 31... axb6 {[%clk 0:00:27.6]}
32. g4 {[%clk 0:01:16.1]} 32... Nd5 {[%clk 0:00:26.7]} 33. Nexd5+ {[%clk
0:01:15.9]} 33... Bxd5 {[%clk 0:00:28]} 34. Nxd5+ {[%clk 0:01:15.3]} 34... cxd5
{[%clk 0:00:29.9]} 35. Ke3 {[%clk 0:01:16]} 35... Ra8 {[%clk 0:00:22.6]} 36.
Bxd5 {[%clk 0:01:16.8]} 36... Rxa3+ {[%clk 0:00:24.1]} 37. Kf2 {[%clk
0:01:18.3]} 37... Rxh3 {[%clk 0:00:24.8]} 38. gxf5 {[%clk 0:01:19.7]} 0-1

[Event "*** Biggest EVER Titled Tuesday"]
[Site "Chess.com"]
[Date "2018.04.17"]
[Round "6"]
[White "BilodeauA"]
[Black "Konavets"]
[Result "1-0"]
[WhiteElo "2644"]
[BlackElo "2779"]
[TimeControl "180+2"]
[EndTime "14:21:53 PDT"]
[Termination "BilodeauA won by resignation"]

1. e4 {[%clk 0:02:58.2]} 1... c5 {[%clk 0:02:52.2]} 2. Nf3 {[%clk 0:02:58.7]}
2... d6 {[%clk 0:02:53.2]} 3. d4 {[%clk 0:03:00.1]} 3... cxd4 {[%clk 0:02:55.1]}
4. Nxd4 {[%clk 0:03:01.6]} 4... Nf6 {[%clk 0:02:55.8]} 5. Nc3 {[%clk 0:03:03]}
5... a6 {[%clk 0:02:55.5]} 6. Be2 {[%clk 0:03:01.8]} 6... e6 {[%clk 0:02:55.8]}
7. O-O {[%clk 0:03:02.2]} 7... Be7 {[%clk 0:02:57.7]} 8. f4 {[%clk 0:03:02.4]}
8... O-O {[%clk 0:02:59.6]} 9. a4 {[%clk 0:02:59.8]} 9... Qc7 {[%clk 0:02:56.7]}
10. Bf3 {[%clk 0:02:57.1]} 10... Nc6 {[%clk 0:02:57.7]} 11. Be3 {[%clk
0:02:57.3]} 11... Bd7 {[%clk 0:02:58.8]} 12. Nb3 {[%clk 0:02:55.7]} 12... b6
{[%clk 0:03:00.1]} 13. Qd2 {[%clk 0:02:53.9]} 13... Rfd8 {[%clk 0:02:54.5]} 14.
Rad1 {[%clk 0:02:54.9]} 14... Bc8 {[%clk 0:02:53.5]} 15. g4 {[%clk 0:02:55.5]}
15... Bb7 {[%clk 0:02:54.3]} 16. g5 {[%clk 0:02:56.1]} 16... Nd7 {[%clk
0:02:55.7]} 17. Bg2 {[%clk 0:02:54.6]} 17... Rac8 {[%clk 0:02:55.9]} 18. Rf3
{[%clk 0:02:46.7]} 18... Bf8 {[%clk 0:02:55.6]} 19. Rh3 {[%clk 0:02:26.3]} 19...
Nc5 {[%clk 0:02:45.5]} 20. Qf2 {[%clk 0:02:22.7]} 20... g6 {[%clk 0:02:41.4]}
21. Qh4 {[%clk 0:02:22.9]} 21... h5 {[%clk 0:02:42]} 22. gxh6 {[%clk 0:02:24.6]}
22... Kh7 {[%clk 0:02:38.6]} 23. Nd2 {[%clk 0:02:21.3]} 23... Be7 {[%clk
0:02:23]} 24. Qf2 {[%clk 0:02:19.3]} 24... Nb4 {[%clk 0:02:14.6]} 25. Nf3 {[%clk
0:02:15.8]} 25... Nxe4 {[%clk 0:02:03.1]} 26. Nxe4 {[%clk 0:02:15.2]} 26... Bxe4
{[%clk 0:02:05]} 27. Bxb6 {[%clk 0:01:49]} 27... Qb7 {[%clk 0:02:05.2]} 28. Bxd8
{[%clk 0:01:41.9]} 28... Bxd8 {[%clk 0:02:00]} 29. Ng5+ {[%clk 0:01:39]} 29...
Bxg5 {[%clk 0:01:58.9]} 30. fxg5 {[%clk 0:01:34.8]} 30... Bxg2 {[%clk 0:00:48]}
31. Qxg2 {[%clk 0:01:36.2]} 31... Nd5 {[%clk 0:00:48.8]} 32. Qf2 {[%clk
0:01:23.7]} 32... Rc4 {[%clk 0:00:47.4]} 33. Rxd5 {[%clk 0:01:15.8]} 33... Rg4+
{[%clk 0:00:10.5]} 34. Rg3 {[%clk 0:01:11]} 34... Rxg3+ {[%clk 0:00:11.6]} 35.
hxg3 {[%clk 0:01:11.9]} 35... exd5 {[%clk 0:00:12.9]} 36. Qf6 {[%clk 0:01:10.9]}
1-0